bitfinex/quotes_BTCUSD_20260126
["timestamp","ask_amount","ask_price","bid_price","bid_amount"]
[1769448552822,0.00653183,87548.0,87533.0,0.0003025]
[1769448554940,0.03,87550.0,87534.0,0.62845504]
[1769448555139,0.03,87550.0,87535.0,0.03341586]
[1769448555751,0.00653316,87549.0,87535.0,0.03341586]
[1769448557024,0.00563923,87549.0,87535.0,0.03341586]
[1769448557324,0.00536854,87549.0,87535.0,0.03341586]
[1769448557570,0.03,87550.0,87535.0,0.03341586]
[1769448558927,0.03538019,87550.0,87535.0,0.03341586]
[1769448559092,0.00522189,87550.0,87535.0,0.03341586]
[1769448560313,0.01664393,87550.0,87535.0,0.03341586]
[1769448560516,0.00522189,87550.0,87535.0,0.03341586]
[1769448565797,0.03,87549.0,87535.0,0.03341586]
[1769448566668,0.03,87546.0,87535.0,0.03341586]
[1769448567650,0.03,87546.0,87533.0,0.59534168]
[1769448567853,0.03,87545.0,87533.0,0.59534168]
[1769448568895,0.20451932,87550.0,87533.0,0.61958321]
[1769448568896,0.03,87544.0,87533.0,0.61958321]
[1769448570079,0.03,87543.0,87533.0,0.61958321]
[1769448571167,0.03,87549.0,87533.0,0.61958321]
[1769448571373,0.03,87549.0,87533.0,0.61950701]
[1769448571739,0.05385577,87549.0,87533.0,0.61950701]
[1769448572695,0.03,87545.0,87533.0,0.59526548]
[1769448573589,0.03,87548.0,87533.0,0.59526548]
[1769448573789,0.05385577,87548.0,87533.0,0.59526548]
[1769448574177,0.05385577,87548.0,87515.0,0.1370773]
[1769448574178,0.02385577,87533.0,87515.0,0.1370773]
[1769448574380,0.02385577,87533.0,87450.0,0.2453]
[1769448574381,0.02385577,87533.0,87468.0,0.13711007]
[1769448574382,0.02385577,87478.0,87468.0,0.13711007]
[1769448574583,0.02385577,87478.0,87452.0,0.24063095]
[1769448574584,0.03,87468.0,87452.0,0.24063095]
[1769448574794,0.02385577,87469.0,87452.0,0.24063095]
[1769448574973,0.03,87457.0,87452.0,0.09176381]
[1769448575194,0.03,87455.0,87454.0,0.594067]
[1769448575423,0.03,87455.0,87449.0,0.0003686]
[1769448575424,0.14431726,87455.0,87449.0,0.0003686]
[1769448575644,0.07180999,87468.0,87450.0,0.594067]
[1769448575645,0.03,87453.0,87450.0,0.594067]
[1769448575892,0.03,87451.0,87450.0,0.594067]
[1769448576127,0.03,87451.0,87450.0,0.61830853]
[1769448576601,0.03,87451.0,87449.0,0.0003686]
[1769448576849,0.01143379,87460.0,87449.0,0.0003686]
[1769448576850,0.03,87450.0,87449.0,0.0003686]
[1769448577453,0.03,87448.0,87442.0,0.594067]
[1769448578469,0.03,87448.0,87437.0,0.594067]
[1769448579291,0.001,87450.0,87434.0,0.02424153]
[1769448579292,0.001,87450.0,87435.0,0.01143706]
[1769448579627,0.02385577,87459.0,87441.0,0.594067]
[1769448579824,0.001,87448.0,87441.0,0.594067]
[1769448580032,0.001,87448.0,87439.0,0.01919142]
[1769448580033,0.001,87448.0,87443.0,0.594067]
[1769448580303,0.03,87456.0,87443.0,0.594067]
[1769448580755,0.001,87450.0,87443.0,0.594067]
[1769448580884,0.03,87446.0,87439.0,0.01919142]
[1769448581091,0.03,87446.0,87445.0,0.594467]
[1769448582297,0.03,87456.0,87445.0,0.594467]
[1769448584312,0.03,87454.0,87445.0,0.594467]
[1769448585948,0.03,87453.0,87445.0,0.594467]
[1769448586918,0.03,87455.0,87445.0,0.0004]
[1769448587996,0.03,87451.0,87445.0,0.0004]
[1769448589478,0.03,87450.0,87445.0,0.0004]
[1769448590484,0.03,87449.0,87445.0,0.0004]
[1769448591542,0.04240604,87449.0,87445.0,0.0004]
[1769448592392,0.04903222,87449.0,87445.0,0.0004]
[1769448592531,0.03,87447.0,87441.0,0.47993141]
[1769448592726,0.03,87445.0,87441.0,0.47993141]
[1769448593062,0.03,87443.0,87441.0,0.47993141]
[1769448593272,0.01240604,87449.0,87441.0,0.47993141]
[1769448593273,0.14265124,87442.0,87441.0,0.47993141]
[1769448594762,0.09473421,87442.0,87433.0,0.01469253]
[1769448594961,0.03,87441.0,87436.0,0.6620065]
[1769448595185,0.03,87441.0,87431.0,0.17564]
[1769448595186,0.03,87441.0,87438.0,0.6620065]
[1769448595397,0.02324134,87455.0,87438.0,0.6620065]
[1769448595544,0.02324134,87455.0,87440.0,0.38578453]
[1769448595948,0.03,87454.0,87440.0,0.37337849]
[1769448596148,0.03,87454.0,87441.0,0.6620065]
[1769448597186,0.12012099,87454.0,87441.0,0.6620065]
[1769448597551,0.12012099,87454.0,87431.0,0.17564]
[1769448597829,0.12012099,87454.0,87431.0,0.17576]
[1769448597830,0.05324134,87450.0,87431.0,0.17576]
[1769448597962,0.05324134,87450.0,87432.0,0.6620065]
[1769448598168,0.14336233,87450.0,87432.0,0.6620065]
[1769448598390,0.14336233,87450.0,87432.0,0.68608082]
[1769448599117,0.05324134,87450.0,87432.0,0.68608082]
[1769448599330,0.03,87447.0,87432.0,0.68608082]
[1769448600283,0.08143762,87450.0,87429.0,0.0002]
[1769448600284,0.03,87445.0,87429.0,0.0002]
[1769448600487,0.64492024,87441.0,87429.0,0.0002]
[1769448600942,0.64492024,87441.0,87433.0,0.02407432]
[1769448600943,0.03,87441.0,87433.0,0.02407432]
[1769448601116,0.06308056,87463.0,87430.0,0.38578453]
[1769448601117,0.09012099,87450.0,87437.0,0.02407432]
[1769448601304,0.09012099,87445.0,87440.0,0.38578453]
[1769448601503,0.09012099,87445.0,87429.0,0.06882661]
[1769448601504,0.13723807,87455.0,87439.0,0.02407432]
[1769448601708,0.02324134,87455.0,87440.0,0.38578453]
[1769448602320,0.01,87440.0,87429.0,0.0012]
[1769448602524,0.03,87438.0,87429.0,0.0002]
[1769448603080,0.03,87438.0,87411.0,0.04596]
[1769448603081,0.61492024,87437.0,87411.0,0.04596]
[1769448603283,0.61492024,87437.0,87384.0,0.0002]
[1769448603284,0.03,87407.0,87384.0,0.0002]
[1769448603485,0.01143981,87414.0,87384.0,0.0002]
[1769448603486,0.03,87395.0,87384.0,0.0002]
[1769448603846,0.13723807,87407.0,87395.0,0.02407432]
[1769448604043,0.05719811,87427.0,87384.0,0.0002]
[1769448604044,0.13723807,87411.0,87386.0,0.17576]
[1769448604260,0.61492024,87400.0,87386.0,0.17576]
[1769448604457,0.02324134,87401.0,87386.0,0.17576]
[1769448604458,0.03,87399.0,87386.0,0.17576]
[1769448604798,0.17152199,87417.0,87386.0,0.17576]
[1769448604799,0.13723807,87408.0,87394.0,0.02407432]
[1769448604975,0.61492024,87419.0,87397.0,0.40985885]
[1769448604976,0.13723807,87409.0,87397.0,0.40985885]
[1769448605309,0.17576,87416.0,87397.0,0.40985885]
[1769448605310,0.13723807,87413.0,87397.0,0.02407432]
[1769448605602,0.61492024,87414.0,87397.0,0.02407432]
[1769448605603,0.03,87412.0,87397.0,0.02407432]
[1769448606310,0.27847361,87465.0,87386.0,0.40462852]
[1769448606311,0.13723807,87434.0,87422.0,0.02407432]
[1769448606513,0.03,87435.0,87422.0,0.02407432]
[1769448606894,0.03,87433.0,87422.0,0.02407432]
[1769448607101,0.03,87431.0,87422.0,0.02407432]
[1769448607296,0.03,87429.0,87422.0,0.03551308]
[1769448607473,0.03,87427.0,87420.0,0.6620065]
[1769448607678,0.03,87425.0,87422.0,0.01143876]
[1769448607887,0.03,87423.0,87421.0,0.02407432]
[1769448608095,0.03,87422.0,87421.0,0.02407432]
[1769448608293,0.03,87422.0,87419.0,0.01143916]
[1769448608478,0.03,87422.0,87420.0,0.68608082]
[1769448609137,0.03,87421.0,87420.0,0.68608082]
[1769448609353,0.63816158,87437.0,87423.0,0.01143863]
[1769448609674,0.11381207,87436.0,87423.0,0.01143863]
[1769448609851,0.11381207,87435.0,87420.0,0.69751984]
[1769448610026,0.03,87433.0,87422.0,0.01143876]
[1769448610189,0.03,87431.0,87421.0,0.01143889]
[1769448610396,0.03,87429.0,87422.0,0.01143876]
[1769448610600,0.03,87427.0,87422.0,0.01143876]
[1769448610806,0.61492024,87436.0,87423.0,0.01143863]
[1769448610807,0.03,87425.0,87423.0,0.01143863]
[1769448611160,0.61492024,87436.0,87421.0,0.01143889]
[1769448611161,0.14304277,87424.0,87421.0,0.01143889]
[1769448611456,0.03,87424.0,87422.0,0.02407432]
[1769448612043,0.03,87435.0,87417.0,0.6620065]
[1769448612263,0.03,87435.0,87415.0,0.02407432]
[1769448612264,0.03,87435.0,87423.0,0.001]
[1769448612425,0.0458,87451.0,87423.0,0.001]
[1769448612426,0.02324134,87446.0,87430.0,0.6620065]
[1769448612762,0.02324134,87446.0,87420.0,0.48265911]
[1769448612763,0.02324134,87444.0,87410.0,0.48265911]
[1769448612962,0.1758,87451.0,87406.0,0.0624325]
[1769448612963,0.03,87429.0,87413.0,0.03551426]
[1769448613320,0.05324134,87429.0,87415.0,0.01143968]
[1769448613527,0.05324134,87429.0,87416.0,0.068637]
[1769448614063,0.05324134,87429.0,87416.0,0.01143955]
[1769448614280,0.05324134,87429.0,87416.0,0.0686373]
[1769448614466,0.05324134,87429.0,87416.0,0.01143955]
[1769448614625,0.05324134,87429.0,87413.0,0.02407432]
[1769448614833,0.05324134,87429.0,87414.0,0.01143981]
[1769448615240,0.05324134,87429.0,87415.0,0.01143968]
[1769448615442,0.05324134,87429.0,87416.0,0.01143955]
[1769448615666,0.05324134,87429.0,87416.0,0.06863708]
[1769448615869,0.05324134,87429.0,87416.0,0.01143955]
[1769448616862,0.05324134,87429.0,87414.0,0.01143981]
[1769448617068,0.05324134,87429.0,87414.0,0.06863886]
[1769448617302,0.05324134,87429.0,87416.0,0.01143955]
[1769448617716,0.03,87431.0,87415.0,0.01143968]
[1769448617922,0.58926433,87443.0,87424.0,0.0114385]
[1769448618125,0.61492024,87441.0,87423.0,0.01143863]
[1769448618302,0.61492024,87441.0,87424.0,0.0114385]
[1769448618506,0.61492024,87441.0,87423.0,0.01143863]
[1769448618713,0.61492024,87441.0,87422.0,0.09270637]
[1769448618922,0.03,87438.0,87423.0,0.06863173]
[1769448619083,0.03,87438.0,87424.0,0.0114385]
[1769448619294,0.65873961,87457.0,87429.0,0.63187681]
[1769448619505,0.65873961,87457.0,87432.0,0.02397252]
[1769448619778,0.65873961,87455.0,87432.0,0.02397252]
[1769448620059,0.03,87448.0,87432.0,0.02397252]
[1769448620263,0.68873961,87448.0,87432.0,0.02397252]
[1769448620469,0.68873961,87448.0,87425.0,0.1758]
[1769448620470,0.69548743,87431.0,87400.0,0.05720697]
[1769448620641,0.03,87427.0,87400.0,0.63187681]
[1769448620849,0.03,87421.0,87403.0,0.02397252]
[1769448621218,0.03,87421.0,87405.0,0.63187681]
[1769448621453,0.03,87421.0,87406.0,0.02397252]
[1769448622375,0.00674782,87428.0,87406.0,0.02397252]
[1769448622376,0.03,87426.0,87407.0,0.02397252]
[1769448622580,0.03,87426.0,87407.0,0.01144073]
[1769448622737,0.68873961,87426.0,87408.0,0.02397252]
[1769448623345,0.68873961,87426.0,87406.0,0.63187681]
[1769448623546,0.68873961,87426.0,87410.0,0.02397252]
[1769448625236,0.68873961,87426.0,87410.0,0.02837404]
[1769448625430,0.68873961,87426.0,87411.0,0.02837404]
[1769448625845,0.1758,87436.0,87411.0,0.02837404]
[1769448625846,0.03,87425.0,87411.0,0.63187681]
[1769448626044,0.03,87425.0,87413.0,0.03062336]
[1769448626872,0.03,87425.0,87414.0,0.03062336]
[1769448627074,0.03,87425.0,87410.0,0.01144033]
[1769448627075,0.65873961,87432.0,87361.0,0.63233991]
[1769448627076,0.03,87409.0,87361.0,0.63233991]
[1769448627277,0.0414423,87395.0,87361.0,0.0004631]
[1769448627488,0.03,87388.0,87364.0,0.03062336]
[1769448627731,0.03,87388.0,87361.0,0.1211431]
[1769448627732,0.03,87382.0,87367.0,0.03082336]
[1769448627904,0.0114423,87395.0,87367.0,0.03082336]
[1769448627905,0.46893733,87381.0,87367.0,0.03082336]
[1769448628902,0.46893733,87381.0,87368.0,0.17584]
[1769448630152,0.46893733,87381.0,87367.0,0.0002]
[1769448630351,0.03,87376.0,87367.0,0.0002]
[1769448630552,0.01144374,87384.0,87367.0,0.0002]
[1769448630553,0.50129528,87374.0,87367.0,0.0002]
[1769448631389,0.03,87374.0,87367.0,0.0002]
[1769448631594,0.03,87373.0,87367.0,0.0002]
[1769448631737,0.03,87373.0,87367.0,0.03307265]
[1769448632569,0.03,87382.0,87367.0,0.03307265]
[1769448632748,0.03,87378.0,87367.0,0.03307265]
[1769448633369,0.06865655,87392.0,87357.0,0.05744727]
[1769448633370,0.03,87366.0,87357.0,0.046]
[1769448633608,0.03,87362.0,87356.0,0.17584]
[1769448633807,0.44728274,87362.0,87356.0,0.16728188]
[1769448634813,0.03,87366.0,87356.0,0.16728188]
[1769448634989,0.03,87366.0,87357.0,0.02397252]
[1769448635344,0.03,87366.0,87356.0,0.16728188]
[1769448635551,0.03,87373.0,87356.0,0.16728188]
[1769448635789,0.03,87369.0,87356.0,0.16728188]
[1769448635934,0.44728274,87367.0,87356.0,0.16728188]
[1769448636340,0.03,87367.0,87357.0,0.02397252]
[1769448636939,0.03,87366.0,87357.0,0.02397252]
[1769448637731,0.03,87366.0,87356.0,0.16728188]
[1769448637904,0.03,87364.0,87346.0,0.02397252]
[1769448638066,0.44728274,87362.0,87347.0,0.22168]
[1769448638282,0.03,87360.0,87347.0,0.22168]
[1769448638484,0.04644101,87361.0,87346.0,0.02397252]
[1769448638485,0.03,87358.0,87346.0,0.02397252]
[1769448638822,0.03,87358.0,87347.0,0.22168]
[1769448639394,0.03,87358.0,87346.0,0.02397252]
[1769448639558,0.03,87357.0,87348.0,0.22168]
[1769448640358,0.03,87357.0,87346.0,0.02397252]
[1769448640595,0.41728274,87361.0,87347.0,0.17592]
[1769448640596,0.03,87356.0,87347.0,0.17592]
[1769448640997,0.03,87356.0,87338.0,0.63187681]
[1769448641240,0.03,87356.0,87340.0,0.02397252]
[1769448641447,0.03,87356.0,87343.0,0.02397252]
[1769448641650,0.03,87355.0,87343.0,0.02397252]
[1769448641826,0.03,87355.0,87344.0,0.24569252]
[1769448642051,0.03,87355.0,87338.0,0.17592]
[1769448642052,0.03,87353.0,87338.0,0.17592]
[1769448642216,0.68873961,87353.0,87338.0,0.20089252]
[1769448642413,0.03,87353.0,87338.0,0.20089252]
[1769448642764,0.03,87353.0,87339.0,0.63187681]
[1769448643088,0.03,87351.0,87339.0,0.63187681]
[1769448643512,0.03,87351.0,87302.0,0.00597889]
[1769448643513,0.01,87339.0,87302.0,0.00597889]
[1769448643702,0.03,87332.0,87303.0,0.02397252]
[1769448644012,0.65873961,87319.0,87303.0,0.02397252]
[1769448644196,0.02162589,87322.0,87303.0,0.02397252]
[1769448644197,0.03,87316.0,87303.0,0.02397252]
[1769448644433,0.03,87316.0,87307.0,0.02397252]
[1769448644564,0.02162589,87332.0,87300.0,0.48301226]
[1769448644565,0.65873961,87328.0,87306.0,0.02397252]
[1769448644767,0.02162589,87325.0,87300.0,0.02397252]
[1769448644972,0.65873961,87322.0,87301.0,0.64333143]
[1769448645171,0.03,87321.0,87305.0,0.02443562]
[1769448645372,0.03,87321.0,87307.0,0.02397252]
[1769448645608,0.03,87321.0,87307.0,0.02497252]
[1769448645806,0.03,87321.0,87308.0,0.63187681]
[1769448645965,0.03,87321.0,87309.0,0.63187681]
[1769448646165,0.03,87320.0,87310.0,0.02397252]
[1769448646538,0.06869609,87342.0,87305.0,0.0004631]
[1769448646539,0.65873961,87334.0,87315.0,0.02397252]
[1769448646731,0.65873961,87334.0,87317.0,0.02397252]
[1769448646939,0.65873961,87334.0,87318.0,0.02397252]
[1769448647274,0.03,87333.0,87318.0,0.02397252]
[1769448647531,0.03,87333.0,87318.0,0.63187681]
[1769448647752,0.03,87333.0,87308.0,0.1874137]
[1769448647753,0.03,87327.0,87309.0,0.02397252]
[1769448647885,0.03,87323.0,87309.0,0.02397252]
[1769448648239,0.03,87321.0,87309.0,0.02397252]
[1769448648379,0.03,87321.0,87302.0,0.04584]
[1769448648380,0.68873961,87321.0,87302.0,0.02397252]
[1769448648574,0.68873961,87321.0,87302.0,0.19993252]
[1769448648785,0.01145016,87335.0,87291.0,0.03659338]
[1769448648786,0.0004631,87305.0,87294.0,0.03244235]
[1769448649396,0.03,87309.0,87294.0,0.03244235]
[1769448649803,0.03,87308.0,87296.0,0.01145527]
[1769448650145,0.03,87308.0,87294.0,0.08972005]
[1769448650146,0.03,87308.0,87294.0,0.03244235]
[1769448650295,0.03,87308.0,87294.0,0.10117522]
[1769448650644,0.03,87308.0,87296.0,0.01145527]
[1769448650874,0.03,87308.0,87296.0,0.66909928]
[1769448651162,0.03,87307.0,87298.0,0.02483312]
[1769448651944,0.03,87306.0,87298.0,0.02483312]
[1769448652342,0.03,87306.0,87299.0,0.66909928]
[1769448652527,0.03,87306.0,87300.0,0.02483312]
[1769448653110,0.03,87315.0,87300.0,0.02483312]
[1769448654148,0.0991957,87315.0,87300.0,0.02483312]
[1769448654350,0.67932745,87315.0,87300.0,0.02483312]
[1769448654745,0.03,87311.0,87294.0,0.05727547]
[1769448654964,0.67932745,87309.0,87294.0,0.05727547]
[1769448655159,0.03,87309.0,87296.0,0.66909928]
[1769448655477,0.03,87309.0,87295.0,0.0114554]
[1769448655478,0.03,87309.0,87301.0,0.02483312]
[1769448655904,0.03,87307.0,87294.0,0.03244235]
[1769448656077,0.03,87307.0,87294.0,0.05727547]
[1769448656286,0.03,87307.0,87295.0,0.02483312]
[1769448656669,0.03,87307.0,87296.0,0.68055455]
[1769448656873,0.03,87306.0,87295.0,0.66909928]
[1769448657076,0.03,87306.0,87296.0,0.02483312]
[1769448657269,0.03,87306.0,87297.0,0.02483312]
[1769448657504,0.03,87306.0,87299.0,0.66909928]
[1769448657665,0.03,87306.0,87300.0,0.02483312]
[1769448657872,0.03,87305.0,87300.0,0.02483312]
[1769448658071,0.03,87305.0,87301.0,0.02483312]
[1769448658939,0.03,87313.0,87301.0,0.02483312]
[1769448659087,0.03,87313.0,87302.0,0.02483312]
[1769448659699,0.03,87313.0,87302.0,0.66909928]
[1769448659903,0.03,87312.0,87304.0,0.02483312]
[1769448660339,0.03,87312.0,87304.0,0.66909928]
[1769448660494,0.03,87312.0,87305.0,0.02483312]
[1769448660929,0.64932745,87319.0,87305.0,0.02483312]
[1769448661107,0.03,87318.0,87305.0,0.02483312]
[1769448661522,0.74921602,87318.0,87305.0,0.02483312]
[1769448661720,0.74921602,87318.0,87299.0,0.6939324]
[1769448662043,0.74921602,87318.0,87300.0,0.02483312]
[1769448663232,0.03,87317.0,87300.0,0.01145475]
[1769448663411,0.03,87317.0,87304.0,0.02483312]
[1769448663799,0.64932745,87334.0,87310.0,0.01145344]
[1769448664004,0.64932745,87334.0,87312.0,0.02483312]
[1769448664254,0.03,87333.0,87312.0,0.02483312]
[1769448664485,0.03,87333.0,87314.0,0.02483312]
[1769448664673,0.03,87333.0,87307.0,0.18749383]
[1769448664674,0.03,87331.0,87317.0,0.66909928]
[1769448664872,0.03,87331.0,87319.0,0.02483312]
[1769448665812,0.03,87333.0,87319.0,0.02483312]
[1769448666225,0.03,87333.0,87319.0,0.02132778]
[1769448668049,0.03,87332.0,87323.0,0.66909928]
[1769448668265,0.03,87332.0,87324.0,0.02483312]
[1769448668473,0.03,87332.0,87317.0,0.6939324]
[1769448668693,0.03,87332.0,87318.0,0.02483312]
[1769448669193,0.67932745,87336.0,87318.0,0.02483312]
[1769448669406,0.67932745,87336.0,87318.0,0.66909928]
[1769448669645,0.67932745,87336.0,87319.0,0.02483312]
[1769448670349,0.72537228,87336.0,87319.0,0.02483312]
[1769448670687,0.72537228,87336.0,87312.0,0.66909928]
[1769448670906,0.64932745,87331.0,87312.0,0.6939324]
[1769448671094,0.03,87330.0,87313.0,0.02483312]
[1769448671301,0.03,87330.0,87305.0,0.05726998]
[1769448671302,0.03,87325.0,87297.0,0.02483312]
[1769448671511,0.03,87319.0,87299.0,0.02483312]
[1769448671816,0.03,87319.0,87294.0,0.26155244]
[1769448671818,0.03,87292.0,87279.0,0.0002]
[1769448672092,0.03,87286.0,87263.0,0.02483312]
[1769448672400,0.17604,87293.0,87263.0,0.02483312]
[1769448672401,0.03708521,87282.0,87263.0,0.02483312]
[1769448672614,0.03708521,87282.0,87264.0,0.02483312]
[1769448672615,0.00604901,87281.0,87264.0,0.02483312]
[1769448672793,0.01145619,87289.0,87258.0,0.02483312]
[1769448672794,0.03708521,87277.0,87258.0,0.02483312]
[1769448672996,0.17604,87293.0,87257.0,0.17604]
[1769448672997,0.03,87273.0,87257.0,0.17604]
[1769448673208,0.03708521,87273.0,87257.0,0.17604]
[1769448673417,0.17604,87293.0,87273.0,0.01]
[1769448673418,0.02340492,87282.0,87273.0,0.01]
[1769448673948,0.01145606,87290.0,87252.0,0.01146105]
[1769448673949,0.02340492,87277.0,87252.0,0.01146105]
[1769448674111,0.03156991,87273.0,87254.0,0.03629391]
[1769448674310,0.03,87273.0,87257.0,0.01146039]
[1769448674521,0.03,87273.0,87251.0,0.0005107]
[1769448674522,0.03,87273.0,87264.0,0.02483312]
[1769448674857,0.03,87273.0,87266.0,0.6939324]
[1769448675007,0.19944492,87283.0,87273.0,0.00442899]
[1769448675210,0.03,87282.0,87273.0,0.00442899]
[1769448675425,0.03,87282.0,87266.0,0.02483312]
[1769448676092,0.19944492,87283.0,87282.0,0.0085011]
[1769448676445,0.19944492,87283.0,87267.0,0.6939324]
[1769448677039,0.17604,87283.0,87269.0,0.66909928]
[1769448677962,0.02340492,87282.0,87259.0,0.02483312]
[1769448678174,0.02340492,87282.0,87264.0,0.66909928]
[1769448678445,0.02340492,87282.0,87266.0,0.66909928]
[1769448679104,0.04584,87290.0,87258.0,0.23338071]
[1769448679105,0.03,87289.0,87267.0,0.02478043]
[1769448679275,0.04584,87290.0,87267.0,0.02478043]
[1769448679276,0.05385084,87285.0,87268.0,0.65650173]
[1769448679571,0.03,87283.0,87268.0,0.65650173]
[1769448680115,0.02385084,87284.0,87268.0,0.65650173]
[1769448681783,0.03,87290.0,87268.0,0.66796068]
[1769448681982,0.03,87290.0,87271.0,0.01740459]
[1769448682184,0.03,87290.0,87274.0,0.65650173]
[1769448682759,0.03,87289.0,87274.0,0.65650173]
[1769448684449,0.03,87288.0,87274.0,0.65650173]
[1769448684918,0.06872568,87304.0,87274.0,0.65650173]
[1769448684919,0.01145422,87304.0,87274.0,0.65650173]
[1769448685243,0.17608,87305.0,87271.0,0.01145856]
[1769448685244,0.02385084,87302.0,87275.0,0.65650173]
[1769448685376,0.03,87299.0,87275.0,0.68128216]
[1769448685578,0.03,87295.0,87275.0,0.69274019]
[1769448685913,0.03,87293.0,87275.0,0.69274019]
[1769448686088,0.03,87293.0,87275.0,0.68128216]
[1769448686422,0.03,87293.0,87277.0,0.65650173]
[1769448687415,0.03,87293.0,87278.0,0.02353937]
[1769448687624,0.03,87293.0,87279.0,0.65650173]
[1769448688218,0.03,87292.0,87279.0,0.65650173]
[1769448689038,0.05385084,87292.0,87279.0,0.65650173]
[1769448689422,0.02385084,87302.0,87279.0,0.65650173]
[1769448689603,0.02561666,87298.0,87279.0,0.65650173]
[1769448689819,0.03,87295.0,87279.0,0.65650173]
[1769448690027,0.05561666,87293.0,87279.0,0.65650173]
[1769448690428,0.03774081,87302.0,87293.0,0.01]
[1769448690429,0.02561666,87300.0,87293.0,0.01]
[1769448690648,0.01145213,87320.0,87293.0,0.01]
[1769448690649,0.02561666,87311.0,87293.0,0.01]
[1769448691097,0.03,87310.0,87297.0,0.01145514]
[1769448691297,0.03,87310.0,87298.0,0.66795674]
[1769448691456,0.03,87310.0,87301.0,0.65650173]
[1769448691994,0.03,87309.0,87297.0,0.01145514]
[1769448692157,0.03,87309.0,87292.0,0.24057109]
[1769448692158,0.06011459,87301.0,87280.0,0.01145737]
[1769448692359,0.06011459,87301.0,87270.0,0.48301226]
[1769448692360,0.03,87297.0,87262.0,0.65650173]
[1769448692693,0.03,87284.0,87269.0,0.65650173]
[1769448693274,0.06011459,87284.0,87269.0,0.65650173]
[1769448694708,0.00761365,87288.0,87269.0,0.65650173]
[1769448694921,0.05385084,87287.0,87270.0,0.65650173]
[1769448695126,0.05385084,87287.0,87271.0,0.01145856]
[1769448695341,0.02385084,87297.0,87276.0,0.02478043]
[1769448695555,0.02385084,87297.0,87278.0,0.02478043]
[1769448695725,0.03,87296.0,87279.0,0.65650173]
[1769448697389,0.03,87296.0,87281.0,0.65650173]
[1769448697872,0.03506181,87305.0,87282.0,0.02478043]
[1769448697873,0.03,87295.0,87282.0,0.02478043]
[1769448698068,0.03,87295.0,87283.0,0.68128216]
[1769448698264,0.03,87295.0,87272.0,0.01145842]
[1769448698265,0.03,87295.0,87276.0,0.0114579]
[1769448698474,0.03,87295.0,87281.0,0.65650173]
[1769448698845,0.03,87294.0,87281.0,0.65650173]
[1769448700412,0.03,87309.0,87283.0,0.01145698]
[1769448700533,0.03,87299.0,87282.0,0.65650173]
[1769448701269,0.05385084,87299.0,87282.0,0.65650173]
[1769448701953,0.03,87299.0,87283.0,0.01145698]
[1769448702150,0.03,87298.0,87286.0,0.65650173]
[1769448702546,0.03,87298.0,87286.0,0.68128216]
[1769448703155,0.03,87305.0,87286.0,0.68128216]
[1769448703578,0.05385084,87305.0,87286.0,0.68128216]
[1769448703779,0.03,87303.0,87286.0,0.68128216]
[1769448705344,0.03,87302.0,87286.0,0.68128216]
[1769448705750,0.03,87302.0,87265.0,0.01145934]
[1769448705751,0.03,87296.0,87265.0,0.01145934]
[1769448705873,0.03,87296.0,87260.0,0.72716216]
[1769448705874,0.03,87288.0,87267.0,0.17612]
[1769448706075,0.03,87282.0,87267.0,0.17612]
[1769448706882,0.03,87282.0,87268.0,0.65650173]
[1769448710155,0.03,87285.0,87268.0,0.65650173]
[1769448710357,0.03,87285.0,87269.0,0.67728359]
[1769448711663,0.03,87285.0,87269.0,0.65365439]
[1769448711859,0.03,87285.0,87270.0,0.0237793]
[1769448712458,0.03,87284.0,87270.0,0.0237793]
[1769448712670,0.03,87282.0,87270.0,0.0239294]
[1769448713098,0.34047755,87300.0,87270.0,0.0001501]
[1769448713249,0.00761365,87288.0,87270.0,0.1762701]
[1769448713448,0.00761365,87287.0,87270.0,0.0001501]
[1769448713652,0.00761365,87285.0,87270.0,0.0001501]
[1769448714154,0.03,87282.0,87270.0,0.0001501]
[1769448714356,0.03,87278.0,87270.0,0.0001501]
[1769448714655,0.03761365,87278.0,87270.0,0.0001501]
[1769448715063,0.03,87278.0,87270.0,0.0001501]
[1769448715299,0.03,87274.0,87262.0,0.0003195]
[1769448715484,0.03,87272.0,87263.0,0.17612]
[1769448715679,0.03,87272.0,87262.0,0.0003195]
[1769448716520,0.03,87271.0,87262.0,0.0003195]
[1769448716720,0.03,87271.0,87252.0,0.04588]
[1769448716721,0.01145908,87267.0,87244.0,0.04074358]
[1769448716918,0.74403748,87294.0,87230.0,0.49554067]
[1769448716919,0.03,87259.0,87237.0,0.04074358]
[1769448717220,0.01145947,87264.0,87237.0,0.04074358]
[1769448717221,0.03,87253.0,87237.0,0.04074358]
[1769448717425,0.00744038,87267.0,87253.0,0.01]
[1769448718228,0.2291629,87275.0,87245.0,0.04074358]
[1769448718229,0.03,87263.0,87245.0,0.04074358]
[1769448718446,0.03,87257.0,87245.0,0.04074358]
[1769448718638,0.03,87255.0,87239.0,0.04668156]
[1769448719019,0.03,87255.0,87244.0,0.04668156]
[1769448719213,0.03,87255.0,87245.0,0.65350429]
[1769448719463,7.44e-05,87279.0,87256.0,0.04668156]
[1769448719664,7.44e-05,87279.0,87255.0,0.01]
[1769448719665,0.03,87279.0,87255.0,0.01]
[1769448719824,0.03,87275.0,87252.0,0.04668156]
[1769448720025,0.00743964,87270.0,87252.0,0.04668156]
[1769448720226,0.03743964,87269.0,87252.0,0.04668156]
[1769448720427,7.439e-05,87282.0,87255.0,0.05177423]
[1769448720632,7.439e-05,87278.0,87257.0,0.05177423]
[1769448724206,7.439e-05,87277.0,87258.0,0.04914918]
[1769448724982,7.439e-05,87277.0,87260.0,0.04914918]
[1769448725224,0.03007439,87277.0,87261.0,0.04914918]
[1769448725364,0.03,87277.0,87264.0,0.65350429]
[1769448725568,0.03,87277.0,87265.0,0.04914918]
[1769448726077,0.03,87276.0,87265.0,0.04914918]
[1769448727292,0.03,87275.0,87265.0,0.04914918]
[1769448727494,0.23345554,87294.0,87265.0,0.04914918]
[1769448727674,0.23345554,87294.0,87260.0,0.01146]